Cogmind - Beta 15 @@@ ROGUE MODE // 2025.07.05 @ 20:42:08 Player: StaticNoob Result: Destroyed by D-53 Grenadier with Mini Grenade Launcher Performance ------------- Evolutions (0) 0 Regions Visited (4) 800 Robots Destroyed (29) 145 Value Destroyed (728) 728 Prototype IDs (27) 540 Alien Tech Used (0) 0 Bonus (292) 292 TOTAL SCORE: 2505 Bonus ------- Aligned with FarCom 300 Friendly Fire -8 Cogmind --------- Core Integrity 0/250 Matter 257/300 Energy 125/250 System Corruption 0% Temperature Cool (0) Movement Treading (160) Location -9/Mines Parts ------- > --- POWER (1) -------- Ion Engine > --- PROPULSION (2) --- Light Treads Light Treads > --- UTILITY (2) ------ Large Storage Unit Visual Processing Unit > --- WEAPON (2) ------- Small Laser Light Assault Rifle > --- INVENTORY (15) --- Reinforced Deuterium Engine Reinforced Deuterium Engine Fission Core Improved Heat Sink High-capacity Matter Pod (183) AWS/Autocannon Peak State ------------ > --- POWER ------------ Ion Engine > --- PROPULSION ------- Light Treads Light Treads > --- UTILITY ---------- Large Storage Unit Visual Processing Unit > --- WEAPON ----------- Beam Cannon Field Lobotomy Kit > --- INVENTORY -------- Ion Engine Reinforced Deuterium Engine Reinforced Deuterium Engine Fission Core Light Treads Light Treads Light Treads Compact Wheel Improved Heat Sink Small Storage Unit Small Laser Assault Rifle Light Assault Rifle [Rating: 19] Favorites ----------- Power Ion Engine Engine Ion Engine Propulsion Light Treads Treads Light Treads Utility Large Storage Unit Device Seismic Detector Storage Large Storage Unit Processor Visual Processing Unit Weapon Assault Rifle Energy Gun Small Laser Energy Cannon Beam Cannon Ballistic Gun Assault Rifle Special Weapon Field Lobotomy Kit Build | -11 -10 -10 -10 -9 ------- Run | Yrd Mat Min Exi Min Slots Evolved . | . . . . . Power . | . . . . . Propulsion . | . . . . . Utility . | . . . . . Weapon . | . . . . . Parts Attached 23 | 7 9 1 1 5 Power 4 | 1 2 . . 1 Engine 4 | 1 2 . . 1 Core . | . . . . . Reactor . | . . . . . Propulsion 7 | 2 2 1 . 2 Treads 7 | 2 2 1 . 2 Leg . | . . . . . Wheel . | . . . . . Hover . | . . . . . Flight . | . . . . . Utility 4 | 2 2 . . . Device 1 | 1 . . . . Storage 2 | 1 1 . . . Processor 1 | . 1 . . . Hackware . | . . . . . Protection . | . . . . . Artifact . | . . . . . Weapon 8 | 2 3 . 1 2 Energy Gun 3 | 1 1 . . 1 Energy Cannon 1 | . 1 . . . Ballistic Gun 3 | 1 1 . . 1 Ballistic Cannon . | . . . . . Launcher . | . . . . . Special Weapon 1 | . . . 1 . Impact Weapon . | . . . . . Slashing Weapon . | . . . . . Piercing Weapon . | . . . . . Special Melee Weapon . | . . . . . Unidentified Prototypes . | . . . . . Parts Lost 11 | . 5 . . 6 Power 3 | . 2 . . 1 Propulsion 4 | . 1 . . 3 Utility 1 | . 1 . . . Weapon 3 | . 1 . . 2 Highest Loss Streak 6 | . 2 . . 6 To Critical Strikes . | . . . . . Average Backups 7 | 2 4 8 11 10 Power 1 | . . 1 3 3 Propulsion 3 | . 2 4 3 2 Utility 1 | . . 1 1 2 Weapon 1 | . . 2 2 2 Tool/Special . | . . . . . Unused Backups 7 | . . . 1 6 Power 3 | . . . . 3 Propulsion 1 | . . . 1 . Utility 2 | . . . . 2 Weapon 1 | . . . . 1 Tool/Special . | . . . . . Average Slot Usage (%) 97 | . 94 100 99 95 Engine 12 | . 10 14 14 12 Treads 27 | . 27 28 28 26 Device 2 | . 4 . . . Storage 14 | . 14 14 14 14 Processor 11 | . 8 14 14 14 Energy Gun 4 | . 9 . . 2 Energy Cannon 8 | . 2 14 14 12 Ballistic Gun 14 | . 16 14 13 14 Peak Build Rating 19 | 7 9 9 19 13 Average Rating 8 | 4 7 8 11 12 On Entrance 7 | . 7 8 9 13 Naked Turns . | . . . . . Heaviest Build 36 | 14 30 30 36 30 Greatest Support 40 | 40 40 40 40 40 Greatest Overweight (x) 1 | . 1 . . . Average Overweight (x) . | . . . . . Largest Inventory Capacity 15 | 8 15 15 15 15 Average Capacity 13 | 7 12 15 15 15 Most Carried 14 | 3 10 9 14 14 Average Carried 7 | 2 4 8 12 12 Final Capacity 15 | 8 15 15 15 15 Final Carried 14 | 3 9 9 14 8 Class Distribution -------------------- 100% | Mutant Dominant Class ---------------- Mutant | -10/Materials Mutant | -10/Mines Mutant | -10/Exiles Mutant | -9/Mines Resources | -11 -10 -10 -10 -9 ----------- Run | Yrd Mat Min Exi Min Matter Collected 575 | . 425 130 20 . Remotely . | . . . . . Salvage Created 910 | 82 515 270 . 43 Parts 63 | 12 27 21 . 3 Haulers Intercepted . | . . . . . Recyclers Shooed . | . . . . . Parts Field Recycled . | . . . . . Retrieved Matter . | . . . . . Parts Self-Destructed . | . . . . . Prevented . | . . . . . Kills | -11 -10 -10 -10 -9 ------- Run | Yrd Mat Min Exi Min Combat Hostiles Destroyed 22 | . 13 8 . 1 Melee 2 | . 2 . . . Guns 14 | . 8 5 . 1 Cannons 6 | . 3 3 . . Classes Destroyed 6 | 1 2 2 . 1 Tunneler 4 | 4 . . . . Recycler 1 | . . 1 . . Watcher 2 | . 2 . . . Swarmer 6 | . . 6 . . Grunt 15 | . 13 2 . . Demolisher 1 | . . . . 1 Best Kill Streak 4 | 4 3 4 . 1 Combat Bots Only 3 | . 3 3 . 1 Max Kills in Single Turn 2 | 1 1 2 . 1 Gunslinging . | . . . . . Exploded . | . . . . . Melee 1 | . 1 . . . Uniques/NPCs Destroyed . | . . . . . Combat | -11 -10 -10 -10 -9 -------- Run | Yrd Mat Min Exi Min Hostile Shots Fired 135 | . 85 31 . 19 Missed 33 | . 22 11 . . Hits 102 | . 63 20 . 19 Projectile 102 | . 63 20 . 19 AOE 19 | . . . . 19 Damage Taken 1688 | . 761 214 . 713 Core 263 | . 117 27 . 119 Absorbed by Shields . | . . . . . Core Remaining (%) 100 | 100 . . . . Volleys Fired 77 | 4 49 17 . 7 Largest 2 | 2 2 2 . 2 Hottest 80 | 60 80 80 . 80 Shots Fired 154 | 8 98 34 . 14 Gun 127 | 8 93 17 . 9 Cannon 27 | . 5 17 . 5 Launcher . | . . . . . Special . | . . . . . Kinetic 85 | 4 57 17 . 7 Thermal 69 | 4 41 17 . 7 Explosive . | . . . . . Electromagnetic . | . . . . . Robot Hit Streak 9 | 2 9 8 . 8 Robot Miss Streak 3 | 1 3 1 . 2 Penetration Max . | . . . . . Secondary Targets 1 | . 1 . . . Max Gunslinging Chain 1 | . 1 . . . Shots Hit Robots 100 | 4 64 21 . 11 Core Hits 46 | 4 26 12 . 4 Critical Kills . | . . . . . Critical Parts Destroyed . | . . . . . Critical Strikes . | . . . . . Melee Attacks . | . . . . . Impact . | . . . . . Slashing . | . . . . . Piercing . | . . . . . Sneak Attacks . | . . . . . Combat Hostiles . | . . . . . Follow-up Attacks . | . . . . . Damage Inflicted 1369 | 49 834 343 . 143 Guns 992 | 49 731 144 . 68 Cannons 360 | . 94 196 . 70 Explosions . | . . . . . Melee . | . . . . . Ramming 17 | . 9 3 . 5 Kinetic 667 | 29 448 144 . 46 Thermal 685 | 20 377 196 . 92 Explosive . | . . . . . Electromagnetic . | . . . . . Impact . | . . . . . Slashing . | . . . . . Piercing . | . . . . . Highest Corruption . | . . . . . Average Corruption . | . . . . . Corruption Purged . | . . . . . Corruption Blocked . | . . . . . Overload Shots . | . . . . . Overflow Damage . | . . . . . Projectiles . | . . . . . Explosions . | . . . . . Melee . | . . . . . Knockbacks . | . . . . . Impact . | . . . . . Kinetic . | . . . . . Secondary . | . . . . . Self-Inflicted Damage . | . . . . . Shots . | . . . . . Rammed 4 | . 2 1 . 1 Targets Rammed 6 | . 4 1 . 1 Kicked . | . . . . . Crushed 2 | . 2 . . . Highest Temperature 222 | . 66 222 . 64 Average Temperature 46 | . 25 82 . 30 Received Heat Transfer 507 | . 429 78 . . Siege Activations . | . . . . . Martial Activations . | . . . . . Shielding Activations . | . . . . . Robots Disrupted . | . . . . . Combat Hostiles . | . . . . . Robots Corrupted . | . . . . . Combat Hostiles . | . . . . . Parts Fried . | . . . . . Impact Corruptions . | . . . . . Robots Melted . | . . . . . Combat Hostiles . | . . . . . Parts Melted 4 | . 3 1 . . Heat Transferred 1465 | 50 810 407 . 198 Parts Sabotaged . | . . . . . Parts Stolen . | . . . . . Parts Stripped . | . . . . . Power Chain Reactions . | . . . . . Alert | -11 -10 -10 -10 -9 ------- Run | Yrd Mat Min Exi Min Maximum Alert Level . | . . . . . Low Security (%) 100 | 100 100 100 . 100 Level 1 . | . . . . . Level 2 . | . . . . . Level 3 . | . . . . . Level 4 . | . . . . . Level 5 . | . . . . . High Security . | . . . . . Max Security . | . . . . . Peak Influence 125 | 10 100 125 . 20 Initial 39 | . . 39 . . Average 50 | 2 54 65 . 2 Influence Increases 644 | 20 399 195 . 30 Destroy 0b10 Robot/C 440 | . 260 160 . 20 Destroy 0b10 Robot/NC 35 | 20 10 5 . . Destroy Leader 94 | . 54 30 . 10 Successful Hack 30 | . 30 . . . Lose Combat Pursuer 45 | . 45 . . . Influence Decreases 634 | 20 299 230 65 20 Entered New Map 126 | . . 61 65 . Time Decay 448 | 20 249 169 . 10 Lost Part 60 | . 50 . . 10 Squads Dispatched 3 | . 3 . . . Investigation 2 | . 2 . . . Extermination . | . . . . . Reinforcement 1 | . 1 . . . Assault . | . . . . . Garrison . | . . . . . Intercept . | . . . . . Searches Triggered . | . . . . . Construction Impeded . | . . . . . Haulers Reinforced . | . . . . . Active Scanning Responses . | . . . . . Cargo Convoy Interrupts . | . . . . . Stealth | -11 -10 -10 -10 -9 --------- Run | Yrd Mat Min Exi Min Distress Signals 1 | . 1 . . . Communications Jammed . | . . . . . Distress Signals . | . . . . . Times Spotted 30 | . 20 8 . 2 Peak Tracking Total 4 | . 4 3 . 2 Tactical Retreats 2 | . 2 . . . Traps | -11 -10 -10 -10 -9 ------- Run | Yrd Mat Min Exi Min Traps Triggered 1 | . 1 . . . Indirectly . | . . . . . Trap Hack Attempts . | . . . . . Triggered . | . . . . . Disarmed . | . . . . . Reprogrammed . | . . . . . Reused . | . . . . . Traps Extracted . | . . . . . Installed . | . . . . . Triggered . | . . . . . Machines | -11 -10 -10 -10 -9 ---------- Run | Yrd Mat Min Exi Min Machines Disabled . | . . . . . Max in Single Turn . | . . . . . Machines Repaired . | . . . . . Machines Dismantled . | . . . . . Machines Sabotaged . | . . . . . Overloaded Fab Kills . | . . . . . Hacking | -11 -10 -10 -10 -9 --------- Run | Yrd Mat Min Exi Min Machines Accessed 8 | . 6 . 2 . Terminals 6 | . 6 . . . Fabricators . | . . . . . Repair Stations . | . . . . . Recycling Units . | . . . . . Scanalyzers . | . . . . . Garrison Access . | . . . . . Total Hacks 26 | . 24 . 2 . Successful 14 | . 12 . 2 . Failed 12 | . 12 . . . Catastrophic 2 | . 2 . . . Database Lockouts . | . . . . . Manual 17 | . 16 . 1 . Terminals 24 | . 24 . . . Fabricators . | . . . . . Repair Stations . | . . . . . Recycling Units . | . . . . . Scanalyzers . | . . . . . Garrison Access . | . . . . . Terminal Hacks 11 | . 9 . 2 . Record 1 | . . . 1 . Part Schematic 1 | . 1 . . . Robot Analysis 3 | . 3 . . . Prototype ID Bank 3 | . 3 . . . Branch Access Points 1 | . 1 . . . Dispatch Records 1 | . 1 . . . Proto ID Catalog 1 | . . . 1 . Fabricator Hacks . | . . . . . Repair Station Hacks . | . . . . . Recycling Unit Hacks . | . . . . . Scanalyzer . | . . . . . Garrison Access Hacks . | . . . . . Unauthorized Hacks 3 | . 3 . . . Terminals 3 | . 3 . . . Botnet 3 | . 3 . . . Fabricators . | . . . . . Repair Stations . | . . . . . Recycling Units . | . . . . . Scanalyzers . | . . . . . Garrison Access . | . . . . . Data Cores Recovered . | . . . . . Used . | . . . . . Hacking Detections 6 | . 6 . . . Full Trace Events 2 | . 2 . . . Feedback Events . | . . . . . Feedback Blocked . | . . . . . Robot Schematics Acquired . | . . . . . Robots Built . | . . . . . Authchips . | . . . . . Time . | . . . . . Total Robot Build Rating . | . . . . . Part Schematics Acquired 1 | . 1 . . . Parts Built . | . . . . . Authchips . | . . . . . Time . | . . . . . Total Part Build Rating . | . . . . . Parts Repaired . | . . . . . Time . | . . . . . Parts Recycled . | . . . . . Recycled Matter . | . . . . . Retrieved Matter . | . . . . . Retrieved Components . | . . . . . Parts Scanalyzed . | . . . . . Part Schematics Acquired . | . . . . . Parts Damaged . | . . . . . Bothacking | -11 -10 -10 -10 -9 ------------ Run | Yrd Mat Min Exi Min Used RIF Installer . | . . . . . Robots Hacked . | . . . . . Non-combat . | . . . . . Combat . | . . . . . Robot Hacks Applied . | . . . . . Relay Couplers Released . | . . . . . Fabnet Peak Effective % . | . . . . . Robots Rewired . | . . . . . Allies Hacked . | . . . . . Hacks Repelled . | . . . . . Allies | -11 -10 -10 -10 -9 -------- Run | Yrd Mat Min Exi Min Total Allies . | . . . . . Largest Group . | . . . . . Highest-Rated Group . | . . . . . Highest-Rated Ally . | . . . . . Total Orders . | . . . . . Ally Attacks . | . . . . . Total Damage . | . . . . . Kills . | . . . . . Allies Corrupted . | . . . . . Allies Melted . | . . . . . Intel | -11 -10 -10 -10 -9 ------- Run | Yrd Mat Min Exi Min Active Infowar (turns) 1436 | 7 605 342 416 66 Optics 1217 | . 393 342 416 66 Seismic 219 | 7 212 . . . Robot Analysis Total 3 | . 3 . . . Derelict Logs Recovered 2 | . . 2 . . Drone Launches . | . . . . . Drone Recoveries . | . . . . . Exploration | -11 -10 -10 -10 -9 ------------- Run | Yrd Mat Min Exi Min Turns Passed 1585 | 85 676 342 416 66 Spaces Moved 782 | 39 288 177 255 23 Core 2 | 2 . . . . Treads 780 | 37 288 177 255 23 Legs . | . . . . . Wheels . | . . . . . Hover . | . . . . . Flight . | . . . . . Fastest Speed 50 | 50 160 160 160 160 Average Speed 160 | 154 161 160 160 160 Slowest Speed 240 | 160 240 160 160 160 Overloaded Moves . | . . . . . Propulsion Burnouts . | . . . . . Robots Hopped . | . . . . . Potential Cave-ins . | . . . . . Cave-ins Triggered . | . . . . . Exploration Rate (%) 36 | 3 58 44 62 14 Regions Visited 4 Branch Regions 3 Pre-discovered Areas 2 | . . 1 1 . Known Exits Taken 1 | . 1 . . . Unknown Exits Taken 3 | 1 . 1 1 . Scrap Searched . | . . . . . Spaces Dug . | . . . . . Terrain Destroyed . | . . . . . Melee . | . . . . . Projectile . | . . . . . AOE . | . . . . . Terrain Rammed . | . . . . . Walls Destroyed . | . . . . . Machines Disabled . | . . . . . Actions | -11 -10 -10 -10 -9 --------- Run | Yrd Mat Min Exi Min Total 956 | 52 399 202 265 38 Wait 45 | . 39 5 . 1 Move 778 | 38 287 176 254 23 Hop . | . . . . . Pick Up 17 | 3 8 1 5 . Fast Attach 12 | 7 4 . 1 . Attach 12 | . 4 1 1 6 Detach 2 | . 1 . 1 . Swap 1 | . 1 . . . Drop 6 | . 2 1 3 . Fire 77 | 4 49 17 . 7 Melee . | . . . . . Ram . | . . . . . Kick . | . . . . . Crush 6 | . 4 1 . 1 Escape Stasis . | . . . . . Rewire . | . . . . . Trap . | . . . . . Miscellaneous . | . . . . . Route ------- -11/Scrapyard -10/Materials (discovered 3 exits: [*Mat x2] / *Min) -10/Mines (discovered 2 exits: *Exi / Sub) -10/Exiles (discovered 2 exits: [*Min x2]) -9/Mines History --------- Turn | Location | Event 10 | -11/Scrapyard | Discovered new exit (range 15) 86 | -11/Scrapyard | Entered Materials 284 | -10/Materials | Discovered new exit (range 10) 288 | -10/Materials | Identified exit to Mines 312 | -10/Materials | Build established: Mutant 520 | -10/Materials | Discovered new exit (range 4) 762 | -10/Materials | Entered Mines 852 | -10/Mines | Core integrity fell below 50% 874 | -10/Mines | Learned location of Mines (-9) 878 | -10/Mines | Identified exit to Subcaves 1096 | -10/Mines | Deemed a non-threat by the Exiles lab entrance 1098 | -10/Mines | Discovered new exit (range 5) 1104 | -10/Mines | Entered Exiles 1131 | -10/Exiles | Discovered new exit (range 17) 1151 | -10/Exiles | Met 8R-AWN 1173 | -10/Exiles | Met EX-HEX 1219 | -10/Exiles | Met EX-BIN 1237 | -10/Exiles | Aligned with FarCom system 1239 | -10/Exiles | Given EX-Vault access code 1275 | -10/Exiles | Opened EX-Vault 1287 | -10/Exiles | Found Field Lobotomy Kit 1312 | -10/Exiles | Found AWS/Autocannon 1343 | -10/Exiles | Warned to stay clear of 0b10 Research branches 1383 | -10/Exiles | Met EX-DEC 1396 | -10/Exiles | Learned location of Zion (-7) 1493 | -10/Exiles | Discovered new exit (range 17) 1520 | -10/Exiles | Left Exiles lab with AWS/Autocannon 1520 | -10/Exiles | Entered Mines 1521 | -9/Mines | Assembled infested the area 1526 | -9/Mines | Assisted by a Guerilla fighting off Assembled 1572 | -9/Mines | Core integrity fell below 20% 1586 | -9/Mines | Destroyed by D-53 Grenadier with Mini Grenade Launcher Last Messages --------------- 01568_ The unstable cave ceiling collapses. 01568_ U-05 Engineer lays Concrete. 01569_ The unstable cave ceiling collapses. 01569_ Lgt. Treads destroyed. 01569_ Ion Engine destroyed. 01569_ U-05 Engineer lays Concrete. 01570_ The unstable cave ceiling collapses. 01571_ U-05 Engineer builds a Wall. 01571_ T-07 Excavator destroyed. 01573_ Beam Cannon destroyed. 01574_ The unstable cave ceiling collapses. 01575_ D-53 Grenadier destroyed. 01575_ U-05 Engineer builds a Wall. 01575_ Lgt. Treads destroyed. 01576_ The unstable cave ceiling collapses. 01579_ U-05 Engineer lays Concrete. 01580_ The unstable cave ceiling collapses. 01580_ U-05 Engineer lays Concrete. 01583_ U-05 Engineer builds a Wall. 01584_ The unstable cave ceiling collapses. Map ----- +----------------------------------------------------+ | ?????????????????????????????????????????????? | | ?????????????????????????????????????????????? | | ?????????????????????????????????????????????? | | ?????????????????????????????????????????????? | | ?????????????????????????????????????????????? | | ?????????????????????????????????????????????? | | ?????????????????????????????????????????????? | | ?????????????????????????????????????????????? | | ?????????????????????????????????????????????? | | ?????????????????????????????#%"#????????????? | | ????????# ????????????##?##?# " ???????????? | | ???????## ########???# ## ## % ???????????? | | ???????#" ;;; "";### # ???????????? | | ??????#" # ### ??????????? | | ??????## # #u ??????????? | | ??????#" %%! ?????????? | | ???????? [ ! #?????????? | | ?????????? [ ???????????? | | ???????????? % # #?????????????? | | ??????????????;;; #?????????????? | | ???????????????# # #d ????????????????? | | ???????????????# #???????????????????? | | ???????????##### ##??????????????????? | | ???????????# = ##?????????????????? | | ???????????# ### # #?????????????????? | | ??????????## #### @ #?????????????????? | | ?????????## #### % #?????????????????? | | ??????# # #### ##?????????????????? | | ??????# #?? #?????????????????? | | ??????# ### #??# #????????????????? | | ??????## ##??## #??? #???????????????? | | ???????##?????## ##??? #???????????????? | | ???????????????####????? ##???????????????? | | ???????????????????????? ##????????????????? | | ???????????????????????? #?????????????????? | | ????????????????????????? #?????????????????? | | ?????????????????????????g ?????????????????? | | ?????????????????????????? ????????????????? | | ?????????????????????????? ????????????????? | | ?????????????????????????? ????????????????? | | ??????????????????????????? ????????????????? | | ?????????????????????????????????????????????? | | ?????????????????????????????????????????????? | | ?????????????????????????????????????????????? | | ?????????????????????????????????????????????? | | ?????????????????????????????????????????????? | | ?????????????????????????????????????????????? | | ?????????????????????????????????????????????? | | ?????????????????????????????????????????????? | | ?????????????????????????????????????????????? | +----------------------------------------------------+ Best States ------------- Heat Dissipation 25 Energy Generation 10 Energy Capacity 250 Matter Stores 300 Matter Capacity 300 Sight Range 18 Terrain Scan Density 10 Evasion (%) 40 Recoil Reduction 2 Item Schematics ----------------- Datajack | -10/Materials | Hacked Robot Schematics ------------------ None Fabricated ------------ Nothing Repaired ---------- Nothing Alien Tech Used ----------------- None Achievements -------------- None Challenges ------------ None Game ------ Seed ServoActiveDeflector Manual? 0 Play Time 00:11:49 Cumulative 87.8 hours Start 2025.07.05 @ 20:31:22 End 2025.07.05 @ 20:42:08 Sessions 1 Manual Loads 0 Difficulty Rogue Special Mode None Game No. 98 Rogue 98 Adventurer 0 Explorer 0 Win Type - Total 1 Types 0/0/1/0/0/0/0/0/0/0 Lore% 54 Gallery% 54 Achievement% 48 Wizard Run 0 Options --------- Layout 1 ASCII 0 Keyboard 0 Movement Mouse Keybinds 0 Fullscreen 1 Font 24/Smallcaps Map View 50x35 Zoom Use 0% Tactical HUD 1 Map Filters NONE Filters NONE Steam 1 RUN: 12290956-24be-457d-ad3f-c29a4d05e463